fUSD/lending_fUSD_20260228
["ID","MTS","AMOUNT","RATE_DAILY","PERIOD"]
[406861774,1772247038836,-500.0,0.00013698,2]
[406861775,1772247038847,-500.0,0.00013698,2]
[406861776,1772247038858,-270.1160722,0.00013698,2]
[406861777,1772247038868,-500.0,0.00013698,2]
[406861778,1772247038877,-500.0,0.00013698,2]
[406861779,1772247038887,-500.0,0.00013698,2]
[406861780,1772247038897,-500.0,0.00013698,2]
[406861781,1772247038906,-500.0,0.00013698,2]
[406861782,1772247038916,-500.0,0.00013698,2]
[406861783,1772247038925,-500.0,0.00013698,2]
[406861784,1772247038935,-500.0,0.00013698,2]
[406861785,1772247038945,-500.0,0.00013698,2]
[406861786,1772247038954,-500.0,0.00013698,2]
[406861787,1772247038964,-500.0,0.00013698,2]
[406861788,1772247038973,-500.0,0.00013698,2]
[406861789,1772247038983,-500.0,0.00013698,2]
[406861790,1772247038993,-500.0,0.00013698,2]
[406861791,1772247039002,-500.0,0.00013698,2]
[406861792,1772247039012,-500.0,0.00013698,2]
[406861793,1772247039021,-500.0,0.00013698,2]
[406861794,1772247039030,-500.0,0.00013698,2]
[406861795,1772247039040,-500.0,0.00013698,2]
[406861796,1772247039049,-500.0,0.00013698,2]
[406861797,1772247039059,-500.0,0.00013698,2]
[406861798,1772247039070,-500.0,0.00013698,2]
[406861799,1772247039080,-500.0,0.00013698,2]
[406861800,1772247039089,-500.0,0.00013698,2]
[406861801,1772247039098,-500.0,0.00013698,2]
[406861802,1772247039108,-500.0,0.00013698,2]
[406861803,1772247039117,-500.0,0.00013698,2]
[406861804,1772247039126,-500.0,0.00013698,2]
[406861805,1772247039136,-500.0,0.00013698,2]
[406861806,1772247039145,-500.0,0.00013698,2]
[406861807,1772247039155,-503.01854449,0.00013698,2]
[406861808,1772247039164,-500.0,0.00013698,2]
[406861809,1772247039174,-500.0,0.00013698,2]
[406861810,1772247039184,-500.0,0.00013698,2]
[406861811,1772247039193,-500.0,0.00013698,2]
[406861812,1772247039203,-500.0,0.00013698,2]
[406861813,1772247039213,-500.0,0.00013698,2]
[406861814,1772247039223,-500.0,0.00013698,2]
[406861815,1772247039233,-500.0,0.00013698,2]
[406861816,1772247039243,-500.0,0.00013698,2]
[406861817,1772247039252,-500.0,0.00013698,2]
[406861818,1772247039261,-500.0,0.00013698,2]
[406861819,1772247039270,-500.0,0.00013698,2]
[406861820,1772247039280,-500.0,0.00013698,2]
[406861821,1772247039290,-500.0,0.00013698,2]
[406861822,1772247039299,-500.0,0.00013698,2]
[406861823,1772247039309,-500.0,0.00013698,2]
[406861824,1772247039473,-500.0,0.00013698,2]
[406861825,1772247039486,-500.0,0.00013698,2]
[406861826,1772247039496,-500.0,0.00013698,2]
[406861827,1772247039506,-500.0,0.00013698,2]
[406861828,1772247039516,-500.0,0.00013698,2]
[406861829,1772247039526,-500.0,0.00013698,2]
[406861830,1772247039535,-500.0,0.00013698,2]
[406861831,1772247039545,-500.0,0.00013698,2]
[406861832,1772247039554,-219.67514616,0.00013698,2]
[406861833,1772247039563,-500.0,0.00013698,2]
[406861834,1772247039573,-500.0,0.00013698,2]
[406861835,1772247039582,-500.0,0.00013698,2]
[406861836,1772247039591,-500.0,0.00013698,2]
[406861837,1772247039600,-500.0,0.00013698,2]
[406861838,1772247039610,-500.0,0.00013698,2]
[406861839,1772247039619,-500.0,0.00013698,2]
[406861840,1772247039628,-393.27599865,0.00013698,2]
[406861841,1772247039637,-522.03594903,0.00013698,2]
[406861842,1772247039645,-500.0,0.00013698,2]
[406861843,1772247039654,-500.0,0.00013698,2]
[406861844,1772247039664,-500.0,0.00013698,2]
[406861845,1772247039673,-500.0,0.00013698,2]
[406861846,1772247039682,-161.88293327,0.00013698,2]
[406861847,1772247039691,-508.5684283,0.00013698,2]
[406861848,1772247039700,-500.0,0.00013698,2]
[406861849,1772247039709,-500.0,0.00013698,2]
[406861850,1772247039718,-500.0,0.00013698,2]
[406861851,1772247039727,-500.0,0.00013698,2]
[406861852,1772247039735,-500.0,0.00013698,2]
[406861853,1772247039745,-500.0,0.00013698,2]
[406861854,1772247039753,-500.0,0.00013698,2]
[406861855,1772247039766,-500.0,0.00013698,2]
[406861856,1772247039776,-500.0,0.00013698,2]
[406861857,1772247039785,-500.0,0.00013698,2]
[406861858,1772247039795,-843.23,0.00013699,2]
[406861859,1772247039805,-920.98,0.00013699,2]
[406861860,1772247039814,-177.13044364,0.00013699,2]
[406861861,1772247039823,-310.22607572,0.00013699,2]
[406861862,1772247039832,-500.0,0.00013699,2]
[406861863,1772247039843,-500.0,0.00013699,2]
[406861864,1772247039853,-164.35592024,0.00013699,2]
[406861865,1772247039863,-500.0,0.00013699,2]
[406861866,1772247039872,-500.0,0.00013699,2]
[406861867,1772247039881,-500.0,0.00013699,2]
[406861868,1772247039891,-500.0,0.00013699,2]
[406861869,1772247039900,-310.96112452,0.00013699,2]
[406861870,1772247039910,-500.0,0.00013699,2]
[406861871,1772247039920,-500.5697584,0.00013699,2]
[406861872,1772247039929,-500.0,0.00013699,2]
[406861873,1772247039938,-500.81982724,0.00013699,2]
[406861874,1772247039947,-500.0,0.00013699,2]
[406861875,1772247039957,-500.0,0.00013699,2]
[406861876,1772247039966,-500.0,0.00013699,2]
[406861877,1772247039974,-500.0,0.00013699,2]
[406861878,1772247039984,-500.0,0.00013699,2]
[406861879,1772247039993,-500.0,0.00013699,2]
[406861880,1772247040002,-507.53207689,0.00013699,2]
[406861881,1772247040012,-500.0,0.00013699,2]
[406861882,1772247040021,-500.0,0.00013699,2]
[406861883,1772247040030,-500.0,0.00013699,2]
[406861884,1772247040040,-500.0,0.00013699,2]
[406861885,1772247040049,-500.0,0.00013699,2]
[406861886,1772247040058,-161.82,0.000137,2]
[406861887,1772247040067,-1125.44717571,0.00013855,2]
[406861888,1772247040076,-23375.80240309,0.00013954,2]
[406861889,1772247040085,-560.82493207,0.00013954,2]
[406861890,1772247040095,-32888.5933,0.00013977,2]
[406861891,1772247040104,-1000.0,0.00013977,2]
[406861892,1772247040113,-500.0,0.0001401,2]
[406861893,1772247040122,-500.0,0.00014109,2]
[406861894,1772247040132,-500.0,0.00014109,2]
[406861895,1772247040141,-500.0,0.00014109,2]
[406861896,1772247040151,-515.0,0.0001411,2]
[406861897,1772247040160,-514.0,0.0001411,2]
[406861898,1772247040170,-289.8901313,0.00014247,2]
[406861899,1772247040179,-1000.0,0.00014247,2]
[406861900,1772247040188,-1000.0,0.00014247,2]
[406861901,1772247040199,-1000.0,0.00014247,2]
[406861902,1772247040208,-510.84264222,0.00014247,2]
[406861903,1772247040217,-1000.0,0.00014247,2]
[406861904,1772247040227,-1000.0,0.00014247,2]
[406861905,1772247040238,-1000.0,0.00014247,2]
[406861906,1772247040248,-1000.0,0.00014247,2]
[406861907,1772247040257,-1000.0,0.00014247,2]
[406861908,1772247040266,-1000.0,0.00014247,2]
[406861909,1772247040276,-1000.0,0.00014247,2]
[406861910,1772247040285,-1000.0,0.00014247,2]
[406861911,1772247040294,-1000.0,0.00014247,2]
[406861912,1772247040304,-1000.0,0.00014247,2]
[406861913,1772247040314,-1000.0,0.00014247,2]
[406861914,1772247040324,-1000.0,0.00014247,2]
[406861915,1772247040333,-1000.0,0.00014247,2]
[406861916,1772247040343,-1007.66164344,0.00014247,2]
[406861917,1772247040352,-483.72968394,0.00014253,2]
[406861918,1772247040361,-920.98,0.00014384,2]
[406861919,1772247040370,-151.0,0.00014634,2]
[406861920,1772247040380,-161.100606,0.00014676,7]
[406861921,1772247040389,-23375.80240309,0.00014743,2]
[406861922,1772247040399,-560.82493207,0.00014744,2]
[406861923,1772247040408,-2049.201359,0.00014779,7]
[406861924,1772247040418,-207.62504932,0.00014787,2]
[406861925,1772247040427,-429.63826143,0.00014787,2]
[406861926,1772247040437,-388.48732458,0.00014787,2]
[406861927,1772247040446,-1500.0,0.00014795,2]
[406861928,1772247040456,-1500.0,0.00014795,2]
[406861929,1772247040465,-1500.0,0.00014795,2]
[406861930,1772247040474,-1500.0,0.00014795,2]
[406861931,1772247040484,-1599.3360351,0.00014795,2]
[406861932,1772247040493,-1500.0,0.00014795,2]
[406861933,1772247040503,-742.07812553,0.00014795,2]
[406861934,1772247040512,-1500.0,0.00014795,2]
[406861935,1772247040521,-1500.0,0.00014795,2]
[406861936,1772247040530,-1500.0,0.00014795,2]
[406861937,1772247040539,-1500.0,0.00014795,2]
[406861938,1772247040549,-1500.0,0.00014795,2]
[406861939,1772247040558,-1500.0,0.00014795,2]
[406861940,1772247040567,-1500.0,0.00014795,2]
[406861941,1772247040578,-1500.0,0.00014795,2]
[406861942,1772247040587,-1145.47642,0.00014795,2]
[406861943,1772247040599,-875.12,0.00015068,2]
[406861944,1772247040608,-920.98,0.00015068,2]
[406861945,1772247040618,-603.81,0.00015342,2]
[406861946,1772247040627,-2000.0,0.00015342,2]
[406861947,1772247040636,-2000.0,0.00015342,2]
[406861948,1772247040646,-1517.58422612,0.00015342,2]
[406861949,1772247040656,-205.11520705,0.00015342,2]
[406861950,1772247040666,-2000.0,0.00015342,2]
[406861951,1772247040675,-2000.0,0.00015342,2]
[406861952,1772247040685,-2000.0,0.00015342,2]
[406861953,1772247040694,-539.84108658,0.00015342,2]
[406861954,1772247040703,-1507.4734396,0.00015342,2]
[406861955,1772247040713,-1202.07266483,0.00015342,2]
[406861956,1772247040723,-1616.65379419,0.00015342,2]
[406861957,1772247040732,-2000.0,0.00015342,2]
[406861958,1772247040742,-1000.0,0.00015342,2]
[406861959,1772247040751,-370.90375807,0.00015408,2]
[406861960,1772247040762,-9990.0,0.00015471,2]
[406861961,1772247040774,-23375.80240309,0.00015532,2]
[406861962,1772247040784,-560.82493207,0.00015533,2]
[406861963,1772247040793,-500.0,0.00015554,2]
[406861964,1772247040803,-174.04581251,0.00015653,2]
[406861965,1772247040813,-160.0,0.00015653,2]
[406861966,1772247040823,-920.98,0.00015753,2]
[406861967,1772247040834,-164.26,0.00015775,2]
[406861968,1772247040843,-710.27511259,0.0001589,2]
[406861969,1772247040852,-2500.0,0.0001589,2]
[406861970,1772247040862,-1024.55143979,0.0001589,2]
[406861971,1772247040872,-2276.78956072,0.0001589,2]
[406861972,1772247040881,-2500.0,0.0001589,2]
[406861973,1772247040890,-1007.20616861,0.0001589,2]
[406861974,1772247040899,-5018.36116075,0.0001596,2]
[406861975,1772247040909,-1015.21,0.00016,3]
[406861976,1772247040918,-151.0,0.00016055,2]
[406861977,1772247040928,-269.917619,0.00016055,2]
[406861978,1772247040937,-174.61919141,0.00016055,2]
[406861979,1772247040946,-151.0,0.00016055,2]
[406861980,1772247040955,-500.0,0.00016055,2]
[406861981,1772247040965,-500.0,0.00016055,2]
[406861982,1772247040974,-640.55318202,0.00016055,2]
[406861983,1772247040984,-500.0,0.00016055,2]
[406861984,1772247040993,-500.0,0.00016055,2]
[406861985,1772247041003,-500.0,0.00016055,2]
[406861986,1772247041018,-500.0,0.00016055,2]
[406861987,1772247041028,-500.0,0.00016055,2]
[406861988,1772247041038,-500.0,0.00016055,2]
[406861989,1772247041047,-500.0,0.00016055,2]
[406861990,1772247041057,-500.0,0.00016055,2]
[406861991,1772247041067,-668.65185757,0.00016055,2]
[406861992,1772247041077,-500.0,0.00016055,2]
[406861993,1772247041087,-500.0,0.00016055,2]
[406861994,1772247041097,-500.0,0.00016055,2]
[406861995,1772247041107,-500.0,0.00016055,2]
[406861996,1772247041117,-267.46074303,0.00016055,2]
[406861997,1772247041126,-157.76865277,0.0001611,2]
[406861998,1772247041136,-693.3919763,0.0001611,2]
[406861999,1772247041146,-500.0,0.00016159,2]
[406862000,1772247041155,-500.0,0.00016159,2]
[406862001,1772247041165,-195.98442162,0.00016159,2]
[406862002,1772247041175,-719.04747942,0.00016165,2]
[406862003,1772247041184,-745.65223616,0.0001622,2]
[406862004,1772247041194,-773.2413689,0.00016275,2]
[406862005,1772247041205,-23375.80240309,0.00016322,2]
[406862006,1772247041214,-560.82493207,0.00016322,2]
[406862007,1772247041224,-801.85129955,0.0001633,2]
[406862008,1772247041234,-831.51979763,0.00016385,2]
[406862009,1772247041244,-266.81662109,0.00016438,2]
[406862010,1772247041254,-920.98,0.00016438,2]
[406862011,1772247041265,-2295.1037872,0.00016438,2]
[406862012,1772247041275,-3000.0,0.00016438,2]
[406862013,1772247041284,-862.28603014,0.0001644,2]
[406862014,1772247041294,-367.18573899,0.00016484,2]
[406862015,1772247041305,-894.19061326,0.00016495,2]
[406862016,1772247041314,-927.27566595,0.0001655,2]
[406862017,1772247041324,-156.74932774,0.00016603,2]
[406862018,1772247041334,-279.9045709,0.00016603,2]
[406862019,1772247041343,-181.08010149,0.00016603,2]
[406862020,1772247041354,-277.35679052,0.00016603,2]
[406862021,1772247041369,-961.58486559,0.00016605,2]
[406862022,1772247041378,-997.16350561,0.0001666,2]
[406862023,1772247041389,-371.0,0.00016677,2]
[406862024,1772247041398,-371.0,0.00016697,2]
[406862025,1772247041408,-2000.0,0.0001681,2]
[406862026,1772247041418,-2000.0,0.0001691,2]
[406862027,1772247041428,-1555.75,0.00016922,2]
[406862028,1772247041438,-3500.0,0.00016986,2]
[406862029,1772247041448,-2000.0,0.0001701,2]
[406862030,1772247041457,-5507.95366483,0.000171,2]
[406862031,1772247041468,-560.82493207,0.00017111,2]
[406862032,1772247041477,-350.0,0.0001712,2]
[406862033,1772247041487,-371.0,0.0001713,2]
[406862034,1772247041497,-238.05592954,0.00017151,2]
[406862035,1772247041507,-187.78006525,0.00017151,2]
[406862036,1772247041517,-364.15683999,0.00017151,2]
[406862037,1772247041527,-371.0,0.00017192,2]
[406862038,1772247041537,-371.0,0.00017269,2]
[406862039,1772247041548,-1232.81448145,0.00017315,2]
[406862040,1772247041558,-350.0,0.00017519,2]
[406862041,1772247041568,-253.7336316,0.00017523,2]
[406862042,1772247041577,-168.0,0.00017527,2]
[406862043,1772247041588,-3979.36214283,0.00017534,2]
[406862044,1772247041598,-371.0,0.00017567,2]
[406862045,1772247041607,-896.85540865,0.0001764,2]
[406862046,1772247041617,-371.0,0.00017669,2]
[406862047,1772247041627,-489.74797225,0.00017678,2]
[406862048,1772247041637,-227.3234191,0.00017699,2]
[406862049,1772247041646,-371.0,0.00017704,2]
[406862050,1772247041656,-150.0,0.00017735,2]
[406862051,1772247041667,-150.0,0.00017738,2]
[406862052,1772247041676,-150.0,0.0001774,2]
[406862053,1772247041686,-150.0,0.00017744,2]
[406862054,1772247041695,-150.0,0.00017755,2]
[406862055,1772247041705,-150.0,0.00017755,2]
[406862056,1772247041714,-1033.13865863,0.0001776,2]
[406862057,1772247041728,-150.0,0.00017761,2]
[406862058,1772247041737,-150.0,0.00017771,2]
[406862059,1772247041748,-150.0,0.00017776,2]
[406862060,1772247041757,-150.0,0.00017803,2]
[406862061,1772247041770,-150.0,0.00017803,2]
[406862062,1772247041780,-150.0,0.00017808,2]
[406862063,1772247041790,-500.0,0.00017808,2]
[406862064,1772247041799,-500.0,0.00017808,2]
[406862065,1772247041810,-500.0,0.00017808,2]
[406862066,1772247041820,-500.0,0.00017808,2]
[406862067,1772247041830,-500.0,0.00017808,2]
[406862068,1772247041841,-500.0,0.00017808,2]
[406862069,1772247041851,-500.0,0.00017808,2]
[406862070,1772247041860,-500.0,0.00017808,2]
[406862071,1772247041870,-500.0,0.00017808,2]
[406862072,1772247041879,-500.0,0.00017808,2]
[406862073,1772247041890,-500.0,0.00017808,2]
[406862074,1772247041900,-256.75808518,0.00017808,2]
[406862075,1772247041909,-500.0,0.00017808,2]
[406862076,1772247041922,-450.0,0.00017808,2]
[406862077,1772247041932,-500.0,0.00017808,2]
[406862078,1772247041941,-202.89632222,0.00017808,2]
[406862079,1772247041950,-500.0,0.00017808,2]
[406862080,1772247041959,-500.0,0.00017808,2]
[406862081,1772247041969,-500.0,0.00017808,2]
[406862082,1772247041979,-500.0,0.00017808,2]
[406862083,1772247041989,-5000.0,0.00017808,2]
[406862084,1772247041998,-800.0,0.00017808,2]
[406862085,1772247042010,-186.74309,0.0001782,2]
[406862086,1772247042021,-186.74309,0.0001782,2]
[406862087,1772247042031,-500.0,0.00017829,2]
[406862088,1772247042041,-140156.87642438,0.0001783,2]
[406862089,1772247042052,-150.0,0.0001784,2]
[406862090,1772247042061,-350.0,0.0001784,2]
[406862091,1772247042072,-150.0,0.00017842,2]
[406862092,1772247042082,-150.0,0.00017855,2]
[406862093,1772247042093,-288.1281186,0.00017858,2]
[406862094,1772247042103,-254.26225979,0.00017863,2]
[406862095,1772247042115,-150.0,0.00017867,2]
[406862096,1772247042125,-217.02842139,0.00017875,2]
[406862097,1772247042134,-350.0,0.00017878,2]
[406862098,1772247042145,-150.0,0.00017881,2]
[406862099,1772247042154,-150.0,0.00017886,2]
[406862100,1772247042164,-500.0,0.00017899,2]
[406862101,1772247042174,-500.0,0.00017899,2]
[406862102,1772247042184,-401.65712351,0.00017899,2]
[406862103,1772247042193,-10000.0,0.000179,2]
[406862104,1772247042203,-560.82493207,0.000179,2]
[406862105,1772247042212,-14107.0,0.000179,2]
[406862106,1772247042222,-150.0,0.00017925,2]
[406862107,1772247042232,-150.0,0.00017935,2]
[406862108,1772247042242,-150.0,0.00017945,2]
[406862109,1772247042252,-150.0,0.00017953,2]
[406862110,1772247042261,-500.0,0.00017955,2]
[406862111,1772247042270,-500.0,0.00017955,2]
[406862112,1772247042280,-500.0,0.00017955,2]
[406862113,1772247042290,-500.0,0.00017955,2]
[406862114,1772247042301,-6649.5883427,0.00017956,2]
[406862115,1772247042311,-403981.4939611,0.00017956,2]
[406862116,1772247042322,-14545.4793304,0.00017956,2]
[406862117,1772247042331,-4848.4931101,0.00017956,2]
[406862119,1772247042341,-150.0,0.00017959,2]
[406862120,1772247042351,-150.0,0.0001796,2]
[406862121,1772247042360,-150.0,0.00017969,2]
[406862122,1772247042370,-150.0,0.00017974,2]
[406862123,1772247042380,-353.32081147,0.00017979,2]
[406862124,1772247042389,-150.0,0.0001798,2]
[406862125,1772247042399,-506.23015856,0.00017982,2]
[406862126,1772247042408,-150.0,0.00017983,2]
[406862127,1772247042418,-1576.8488842,0.0001799,2]
[406862128,1772247042427,-1576.8488842,0.0001799,2]
[406862129,1772247042438,-1758.1117051,0.00017999,5]
[406862130,1772247042448,-258.82987332,0.00017999,2]
[406862131,1772247042458,-373.43483858,0.00017999,2]
[406862132,1772247042468,-331.32565031,0.00017999,2]
[406862133,1772247042477,-500.0,0.00017999,2]
[406862134,1772247042487,-500.0,0.00017999,2]
[406862135,1772247042497,-500.0,0.00017999,2]
[406862136,1772247042507,-500.0,0.00017999,2]
[406862137,1772247042516,-500.0,0.00017999,2]
[406862138,1772247042525,-500.0,0.00017999,2]
[406862139,1772247042535,-500.0,0.00017999,2]
[406862140,1772247042545,-500.0,0.00017999,2]
[406862141,1772247042555,-536.88822607,0.00017999,2]
[406862142,1772247042564,-323.52915924,0.00017999,2]
[406862143,1772247042574,-195.66587194,0.00017999,2]
[406862144,1772247042583,-3343577.15810131,0.00018,2]
[406862145,1772247042592,-2026.70092603,0.00018,2]
[406862146,1772247042602,-150.0,0.00018,2]
[406862147,1772247042611,-3650.2147962,0.00018,2]
[406862148,1772247042620,-150.0,0.00018,2]
[406862149,1772247042630,-41146.14233467,0.00018,2]
[406862150,1772247042640,-150.0,0.00018,2]
[406862151,1772247042650,-2116.12446439,0.00018,2]
[406862152,1772247042659,-257.33277415,0.00018,2]
[406862153,1772247042668,-151.0,0.00018,2]
[406862154,1772247042678,-156.07402711,0.00018,7]
[406862155,1772247042687,-200.0,0.00018,2]
[406862156,1772247042696,-175.90995164,0.00018,7]
[406862157,1772247042706,-150.0,0.00018,7]
[406862158,1772247042715,-152.906327,0.00018,2]
[406862159,1772247042724,-200.0,0.00018,2]
[406862160,1772247042734,-151.0,0.00018,2]
[406862161,1772247042744,-151.0,0.00018,2]
[406862162,1772247042754,-151.0,0.00018,2]
[406862163,1772247042765,-273.196944,0.00018,2]
[406862164,1772247042776,-151.0,0.00018,2]
[406862165,1772247042786,-151.0,0.00018,2]
[406862166,1772247042795,-151.0,0.00018,2]
[406862167,1772247042805,-186.74309,0.00018,2]
[406862168,1772247042815,-186.7431,0.00018,2]
[406862169,1772247042825,-186.7431,0.00018,2]
[406862170,1772247042834,-186.74309,0.00018,2]
[406862171,1772247042846,-186.74309,0.00018,2]
[406862172,1772247042855,-151.0,0.00018,2]
[406862173,1772247042865,-151.0,0.00018,2]
[406862174,1772247042874,-371.0,0.00018,2]
[406862175,1772247042884,-371.0,0.00018012,2]
[406862176,1772247042893,-371.0,0.00018083,2]
[406862177,1772247043055,-371.0,0.00018115,2]
[406862178,1772247043064,-371.0,0.00018135,2]
[406862179,1772247043074,-371.0,0.00018157,2]
[406862180,1772247043083,-350.0,0.00018172,2]
[406862181,1772247043093,-371.0,0.00018177,2]
[406862182,1772247043102,-200.0,0.0001818,2]
[406862183,1772247043111,-200.0,0.0001818,2]
[406862184,1772247043121,-186.74309,0.000182,2]
[406862185,1772247043130,-168.0,0.00018232,2]
[406862186,1772247043139,-371.0,0.00018272,2]
[406862187,1772247043149,-200.0,0.00018362,2]
[406862188,1772247043159,-200.0,0.00018362,2]
[406862189,1772247043168,-350.0,0.00018388,2]
[406862190,1772247043178,-186.7431,0.000184,2]
[406862191,1772247043188,-350.0,0.00018423,2]
[406862192,1772247043198,-168.0,0.00018487,2]
[406862193,1772247043207,-168.0,0.00018502,2]
[406862194,1772247043216,-350.0,0.00018521,2]
[406862195,1772247043226,-371.0,0.00018523,2]
[406862196,1772247043236,-200.0,0.00018545,2]
[406862197,1772247043245,-350.0,0.00018568,2]
[406862198,1772247043255,-371.0,0.00018609,2]
[406862199,1772247043264,-371.0,0.00018629,2]
[406862200,1772247043273,-168.0,0.00018673,2]
[406862201,1772247043283,-200.0,0.00018731,2]
[406862202,1772247043292,-371.0,0.00018768,2]
[406862203,1772247043301,-200.0,0.00018891,2]
[406862204,1772247043312,-243.81,0.000189,7]
[406862205,1772247043321,-800.92398376,0.00018904,2]
[406862206,1772247043331,-1500.0,0.00018916,2]
[406862207,1772247043340,-67694.94,0.0001892,2]
[406862208,1772247043350,-33041.0177268,0.00019,2]
[406862209,1772247043359,-170.19413525,0.00019,2]
[406862210,1772247043368,-350.0,0.00019,2]
[406862211,1772247043378,-209.877326,0.00019178,2]
[406862212,1772247043388,-842.17539101,0.00019436,2]
[406862213,1772247043398,-375.901416,0.00019568,7]
[406862214,1772247043409,-3370.6497731,0.00019592,4]
[406862215,1772247043419,-150.0,0.00019611,2]
[406862216,1772247043428,-226.921254,0.00019667,7]
[406862217,1772247043437,-3187.646559,0.00019705,7]
[406862218,1772247043447,-7135.71,0.00019711,2]
[406862219,1772247043457,-256.8870596,0.00019726,2]
[406862220,1772247043467,-14461.94597375,0.00019802,5]
[406862221,1772247043476,-1000.0,0.00019977,7]
[406862222,1772247043487,-6649.5883427,0.00020045,2]
[406862223,1772247043496,-14545.4793304,0.00020045,2]
[406862224,1772247043505,-4848.4931101,0.00020045,2]
[406862225,1772247043515,-233.31113786,0.00020149,5]
[406862226,1772247043524,-439.19030417,0.0002022,5]
[406862227,1772247043533,-90140.4554445,0.00020302,2]
[406862228,1772247043543,-4007.58592462,0.0002035,6]
[406862229,1772247043552,-276.62845815,0.00020507,6]
[406862230,1772247043562,-20113.0542591,0.00020825,2]
[406862231,1772247043571,-301.38549375,0.00020899,2]
[406862232,1772247043581,-925.30946838,0.00021042,7]
[406862233,1772247043591,-8062.66430053,0.0002116,7]
[406862234,1772247043600,-1345.199,0.0002119,2]
[406862235,1772247043610,-162.996,0.0002119,2]
[406862236,1772247043620,-639.821,0.0002119,2]
[406862237,1772247043630,-1045.317,0.0002119,2]
[406862238,1772247043639,-3512.748,0.0002119,2]
[406862239,1772247043648,-150.798,0.0002119,2]
[406862240,1772247043658,-1301.978,0.0002119,2]
[406862241,1772247043667,-944.144,0.0002119,2]
[406862242,1772247043677,-1211.0,0.0002119,2]
[406862243,1772247043686,-2457.0,0.0002119,2]
[406862244,1772247043696,-413.0,0.0002119,2]
[406862245,1772247043706,-411.39806611,0.00021285,7]
[406862246,1772247043715,-5000.0,0.00021918,2]
[406862247,1772247043725,-163.2,0.00021918,30]
[406862248,1772247043734,-203.18,0.000221,14]
[406862249,1772247043744,-6649.5883427,0.00022135,2]
[406862250,1772247043753,-14545.4793304,0.00022135,2]
[406862251,1772247043764,-4848.4931101,0.00022135,2]
[406862252,1772247043777,-7661.5272894,0.00022195,9]
[406862253,1772247043786,-307.12536178,0.00022671,2]
[406862254,1772247043796,-1528.91,0.0002274,2]
[406862255,1772247043807,-230.28318771,0.00022989,10]
[406862256,1772247043816,-160.0,0.00023,2]
[406862257,1772247043826,-1232.81448145,0.00023832,2]
[406862258,1772247043836,-1340.0,0.0002419,2]
[406862259,1772247043845,-618.0,0.0002419,2]
[406862260,1772247043854,-3499.0,0.0002419,2]
[406862261,1772247043864,-150.0,0.0002419,2]
[406862262,1772247043874,-1277.0,0.0002419,2]
[406862263,1772247043883,-921.0,0.0002419,2]
[406862264,1772247043893,-1211.0,0.0002419,2]
[406862265,1772247043902,-2457.0,0.0002419,2]
[406862266,1772247043911,-413.0,0.0002419,2]
[406862267,1772247043922,-6649.5883427,0.00024224,2]
[406862268,1772247043931,-14545.4793304,0.00024224,2]
[406862269,1772247043941,-4848.4931101,0.00024224,2]
[406862270,1772247043950,-1000.0,0.00024658,2]
[406862271,1772247043960,-425.36852302,0.0002535,2]
[406862272,1772247043970,-154.11,0.00026206,12]
[406862273,1772247043979,-471.85050743,0.00026926,16]
[406862274,1772247043988,-1340.0,0.0002719,2]